bitfinex-derivatives/quotes_SOLF0:USTF0_20251006
["timestamp","ask_amount","ask_price","bid_price","bid_amount"]
[1759793940531,3.8643,232.81,232.74,7.57]
[1759793940729,11.6943,232.81,232.74,7.57]
[1759793940931,11.6943,232.81,232.74,11.17554977]
[1759793941231,3.8645,232.8,232.74,11.17554977]
[1759793942034,3.8647,232.79,232.74,11.17554977]
[1759793942228,3.8647,232.79,232.75,7.57]
[1759793942631,3.8647,232.79,232.74,3.60554977]
[1759793942828,3.8647,232.79,232.75,7.57]
[1759793943134,3.8647,232.79,232.74,3.60554977]
[1759793943828,11.6943,232.81,232.75,7.57]
[1759793944131,11.6943,232.81,232.75,11.17554977]
[1759793946134,3.8643,232.81,232.76,3.60554977]
[1759793946334,7.83,232.8,232.76,11.17554977]
[1759793946535,2.43391069,232.85,232.78,7.57]
[1759793946536,7.83,232.85,232.78,7.57]
[1759793946738,7.83,232.9,232.8,3.60554977]
[1759793946929,67.9185,232.9,232.81,7.57]
[1759793947134,7.83,232.8,232.78,3.60554977]
[1759793947431,7.83,232.82,232.76,11.17554977]
[1759793948636,3.8645,232.8,232.76,11.17554977]
[1759793949239,11.6945,232.8,232.76,11.17554977]
[1759793949739,11.6941,232.82,232.76,11.17554977]
[1759793949926,7.83,232.82,232.76,11.17554977]
[1759793951536,3.8644,232.81,232.76,11.17554977]
[1759793951836,11.6944,232.81,232.77,7.57]
[1759793952036,11.6944,232.81,232.76,3.60554977]
[1759793952240,11.6944,232.81,232.78,7.57]
[1759793953135,3.8639,232.83,232.78,7.57]
[1759793953342,7.83,232.89,232.8,7.57]
[1759793953640,11.6929,232.89,232.83,7.57]
[1759793954034,11.6929,232.89,232.85,7.57]
[1759793954235,3.8629,232.89,232.85,7.57]
[1759793954434,3.8626,232.91,232.85,7.57]
[1759793954637,3.8626,232.91,232.85,11.17554977]
[1759793955137,11.6926,232.91,232.87,7.57]
[1759793955338,11.6926,232.91,232.85,3.60554977]
[1759793955535,11.6926,232.91,232.86,7.57]
[1759793955738,3.8622,232.94,232.87,7.57]
[1759793955941,3.8622,232.94,232.88,11.17554977]
[1759793956441,3.8622,232.94,232.88,7.57]
[1759793957834,3.8617,232.97,232.88,7.57]
[1759793958445,11.6719,232.96,232.88,7.57]
[1759793959639,3.8614,232.98,232.88,7.57]
[1759793959845,3.8614,232.98,232.88,91.03]
[1759793960040,3.8614,232.98,232.89,7.51]
[1759793960437,29.91495811,233.0,232.89,7.51]
[1759793960642,0.74726219,233.02,232.9,3.60554977]
[1759793960841,0.74726219,233.02,232.91,7.51]
[1759793961143,2.30337493,233.02,232.91,9.06611274]
[1759793961535,6.16427493,233.02,232.92,3.8624]
[1759793961739,6.16427493,233.02,232.93,7.51]
[1759793964152,9.36611274,232.99,232.93,7.51]
[1759793964649,13.22751274,232.99,232.93,7.51]
[1759793969160,7.81,232.98,232.88,7.51]
[1759793969461,7.81,232.92,232.88,12.64139169]
[1759793969762,13.22901274,232.9,232.84,7.51]
[1759793973062,7.81,232.9,232.84,7.51]
[1759793974252,1.55611274,232.94,232.85,1.55611274]
[1759793974455,1.55611274,232.94,232.86,7.51]
[1759793979360,1.55611274,232.94,232.8,13.08752511]
[1759793979361,1.55611274,232.91,232.8,16.69307488]
[1759793979561,60.0782,232.94,232.78,314.17611274]
[1759793979562,1.55611274,232.88,232.82,7.36]
[1759793979761,1.55611274,232.85,232.78,319.98]
[1759793980764,1.55611274,232.91,232.8,1.55611274]
[1759793980962,1.55611274,232.91,232.81,7.36]
[1759793981168,1.55611274,232.91,232.82,7.36]
[1759793982071,3.8628,232.9,232.84,7.36]
[1759793986168,1.55611274,232.91,232.84,7.36]
[1759793986369,7.77,232.92,232.84,7.36]
[1759793987770,1.55611274,232.94,232.84,11.2236]
[1759793987972,1.55611274,232.93,232.85,7.36]
[1759793988374,5.41841274,232.93,232.85,11.2234]
[1759793988576,5.41841274,232.93,232.86,7.43]
[1759793989767,3.8619,232.95,232.87,7.43]
[1759793990875,3.8619,232.95,232.88,8.98611274]
[1759793991974,3.8619,232.95,232.88,61.70611274]
[1759793992570,3.8619,232.95,232.89,7.43]
[1759793992972,7.82,232.99,232.89,7.43]
[1759793993176,1.55611274,232.98,232.89,7.43]
[1759793994678,3.8624,232.93,232.87,11.2932]
[1759793996182,3.8624,232.93,232.87,14.89874977]
[1759793998778,11.6824,232.93,232.89,7.43]
[1759793998984,11.6824,232.93,232.88,11.03554977]
[1759793999185,11.6824,232.93,232.89,7.43]
[1759794000485,11.6824,232.93,232.87,109.20554977]
[1759794000682,7.82,232.93,232.88,7.43]
[1759794000986,7.82,232.93,232.87,109.20554977]
[1759794001986,7.82,232.93,232.88,7.43]
[1759794002186,7.82,232.93,232.87,109.20554977]
[1759794002387,7.82,232.93,232.88,7.43]
[1759794002978,7.82,232.93,232.87,109.20554977]
[1759794003182,7.82,232.93,232.87,116.63554977]
[1759794003987,7.82,232.93,232.86,109.18554977]
[1759794004286,7.82,232.93,232.86,116.61554977]
[1759794004479,7.82,232.93,232.87,7.43]
[1759794004680,7.82,232.88,232.83,3.60554977]
[1759794004984,7.82,232.88,232.81,7.43]
[1759794004985,7.82,232.88,232.82,3.60554977]
[1759794005183,3.8636,232.85,232.82,3.60554977]
[1759794005384,3.8636,232.85,232.82,11.03554977]
[1759794006684,7.82,232.93,232.83,7.43]
[1759794006887,1.55611274,232.91,232.83,11.03554977]
[1759794007788,3.8629,232.9,232.83,11.03554977]
[1759794008988,1.55611274,232.91,232.83,11.03554977]
[1759794009184,7.82,232.9,232.83,3.60554977]
[1759794009388,1.55611274,232.88,232.82,3.60554977]
[1759794009582,7.82,232.87,232.82,3.60554977]
[1759794009891,9.37611274,232.88,232.82,3.60554977]
[1759794010594,3.8637,232.85,232.82,3.60554977]
[1759794011494,3.8638,232.84,232.82,3.60554977]
[1759794011694,3.8638,232.84,232.81,11.03554977]
[1759794011896,3.8638,232.84,232.78,67.5661404]
[1759794011897,11.6838,232.84,232.8,3.60554977]
[1759794012089,3.864,232.83,232.8,3.60554977]
[1759794012287,11.684,232.83,232.8,3.60554977]
[1759794012893,3.8642,232.81,232.79,3.60554977]
[1759794013292,3.8639,232.83,232.79,3.60554977]
[1759794013595,9.37611274,232.88,232.8,3.60554977]
[1759794013987,3.8638,232.84,232.8,3.60554977]
[1759794014196,3.8638,232.84,232.8,11.03554977]
[1759794014597,3.8638,232.84,232.8,7.43]
[1759794015498,3.864,232.83,232.8,7.43]
[1759794016296,3.864,232.83,232.79,3.60554977]
[1759794016498,60.0833,232.92,232.81,11.03554977]
[1759794016499,3.863,232.89,232.81,11.03554977]
[1759794016693,3.863,232.89,232.82,3.60554977]
[1759794017895,3.8632,232.88,232.82,3.60554977]
[1759794020100,3.8632,232.88,232.83,7.4]
[1759794020398,3.8632,232.88,232.82,3.60554977]
[1759794020895,3.8627,232.9,232.83,7.4]
[1759794021094,3.8627,232.9,232.84,11.00554977]
[1759794022095,11.6824,232.92,232.85,7.4]
[1759794024194,7.48,232.87,232.83,3.60554977]
[1759794024391,7.48,232.87,232.82,11.00554977]
[1759794024597,2.43336162,232.94,232.83,11.00554977]
[1759794024797,7.48,232.93,232.84,3.60554977]
[1759794025597,3.8627,232.91,232.84,3.60554977]
[1759794025801,3.8627,232.91,232.85,7.4]
[1759794025992,7.48,233.01,232.89,11.00554977]
[1759794026195,3.8612,232.99,232.9,11.2626]
[1759794026600,3.8612,232.99,232.9,14.86814977]
[1759794027298,11.3415,232.98,232.9,11.00554977]
[1759794029206,3.8611,233.0,232.91,7.4]
[1759794029603,3.8611,233.0,232.92,3.60554977]
[1759794029803,8.22726219,233.02,232.94,7.4]
[1759794030004,8.22726219,233.02,232.94,11.00554977]
[1759794030205,7.48,233.02,232.94,11.00554977]
[1759794030805,11.3409,233.02,232.94,11.00554977]
[1759794031200,7.48,233.02,232.94,11.00554977]
[1759794031396,7.48,233.02,232.94,7.4]
[1759794032604,3.8611,233.0,232.94,7.4]
[1759794033303,7.48,233.02,232.94,7.4]
[1759794033604,7.48,233.06,232.96,7.4]
[1759794033806,7.48,233.06,232.98,7.4]
[1759794038216,10.97035914,233.1,232.98,7.4]
[1759794038416,7.79,233.08,232.98,7.4]
[1759794039814,3.8599,233.07,232.98,7.4]
[1759794040619,3.8602,233.06,232.98,7.4]
[1759794042719,3.8602,233.06,232.99,39.14]
[1759794042921,3.8602,233.06,232.99,89.16]
[1759794043716,312.62,233.15,233.04,3.8604]
[1759794043919,7.79,233.13,233.05,7.82]
[1759794047122,7.79,233.13,233.05,11.6801]
[1759794047924,11.6483,233.17,233.08,7.82]
[1759794048120,7.79,233.17,233.08,7.82]
[1759794048327,60.0184,233.17,233.05,46.82]
[1759794048623,7.51,233.16,233.05,46.82]
[1759794049020,60.0184,233.17,233.05,46.82]
[1759794049214,7.51,233.16,233.05,46.82]
[1759794049422,3.8592,233.12,233.05,46.82]
[1759794052628,7.51,233.13,233.04,82.0702]
[1759794053221,7.51,233.13,233.04,74.4002]
[1759794053430,7.51,233.13,233.05,7.67]
[1759794055436,8.2567731,233.18,233.05,7.67]
[1759794056734,3.8585,233.16,233.08,11.5297]
[1759794056933,7.51,233.15,233.08,11.5297]
[1759794060635,11.3687,233.15,233.08,7.67]
[1759794064438,7.51,233.15,233.08,7.67]
[1759794065536,7.51,233.15,233.08,11.5296]
[1759794069243,7.51,233.15,233.09,7.67]
[1759794071647,7.51,233.15,233.09,112.99]
[1759794071945,11.3687,233.15,233.09,7.67]
[1759794072149,11.3687,233.15,233.09,38.45]
[1759794073241,7.51,233.15,233.08,56.36]
[1759794073446,7.51,233.15,233.07,84.66]
[1759794074547,3.859,233.13,233.07,84.66]
[1759794077152,7.51,233.12,233.06,3.59284491]
[1759794078151,7.51,233.12,233.07,7.53]
[1759794078549,7.51,233.12,233.06,11.12284491]
[1759794079053,3.859,233.13,233.08,7.53]
[1759794079255,3.859,233.13,233.07,3.59284491]
[1759794079459,3.859,233.13,233.07,11.12284491]
[1759794079956,7.41,233.19,233.08,3.59284491]
[1759794080155,7.41,233.19,233.09,7.53]
[1759794080352,7.41,233.19,233.09,14.98234491]
[1759794080553,3.8583,233.17,233.09,14.98234491]
[1759794083058,0.7466209,233.21,233.13,7.53]
[1759794083250,1.55370896,233.21,233.13,7.53]
[1759794084056,8.96370896,233.23,233.14,7.53]
[1759794084953,12.82100896,233.23,233.14,7.53]
[1759794087352,12.82100896,233.23,233.14,11.12284491]
[1759794087957,3.8575,233.22,233.14,11.12284491]
[1759794088163,8.96370896,233.23,233.14,11.12284491]
[1759794089559,3.8578,233.2,233.14,11.12284491]
[1759794091760,3.858,233.19,233.15,7.53]
[1759794091967,3.858,233.19,233.14,3.59284491]
[1759794092165,7.41,233.18,233.14,3.59284491]
[1759794092361,7.41,233.18,233.14,11.12284491]
[1759794093064,3.8583,233.17,233.14,3.59284491]
[1759794093261,1.55370896,233.17,233.1,11.12284491]
[1759794093462,7.41,233.12,233.09,3.59284491]
[1759794093662,7.41,233.09,233.07,3.59284491]
[1759794097071,7.31,233.09,233.06,3.59284491]
[1759794098075,1.55370896,233.1,233.06,3.59284491]
[1759794098668,7.31,233.08,233.06,3.59284491]
[1759794099275,7.31,233.08,233.05,3.59284491]
[1759794099476,7.31,233.08,233.05,11.29284491]
[1759794101075,7.31,233.08,233.06,3.59284491]
[1759794102075,7.31,233.08,233.05,11.29284491]
[1759794102275,3.8597,233.09,233.06,3.59284491]
[1759794102486,1.55370896,233.1,233.06,11.29284491]
[1759794102681,8.86370896,233.1,233.06,11.29284491]
[1759794103477,8.86370896,233.1,233.06,3.59284491]
[1759794103681,8.86370896,233.1,233.06,11.29284491]
[1759794104283,12.72320896,233.1,233.06,11.29284491]
[1759794104782,11.1697,233.09,233.06,11.29284491]
[1759794105177,7.31,233.09,233.06,11.29284491]
[1759794105382,11.17,233.07,233.05,3.59284491]
[1759794105683,11.17,233.07,233.04,105.24]
[1759794105985,11.17,233.07,233.04,112.94]
[1759794106285,3.8602,233.06,233.04,7.7]
[1759794106584,3.8602,233.06,233.04,112.94]
[1759794106980,11.1702,233.06,233.04,105.24]
[1759794107186,11.1702,233.06,233.03,116.53284491]
[1759794107382,3.8602,233.06,233.04,7.7]
[1759794108584,3.8602,233.06,233.04,112.94]
[1759794109392,11.6802,233.06,233.03,3.59284491]
[1759794109591,11.6802,233.06,233.03,105.24]
[1759794109890,3.8604,233.05,233.02,3.59284491]
[1759794110086,7.82,233.04,233.02,3.59284491]
[1759794110394,7.82,233.04,233.03,105.24]
[1759794110789,11.6805,233.04,233.02,3.59284491]
[1759794110992,11.6805,233.04,233.02,64.54]
[1759794111393,3.8605,233.04,233.02,72.45]
[1759794113193,3.8605,233.04,233.02,7.91]
[1759794113893,3.8605,233.04,233.01,3.59284491]
[1759794114095,3.8605,233.04,233.02,7.91]
[1759794114390,3.8605,233.04,233.01,3.59284491]
[1759794114591,3.8605,233.04,233.02,7.91]
[1759794116192,3.8605,233.04,233.01,3.59284491]
[1759794116494,3.8605,233.04,233.01,7.91]
[1759794116695,3.8605,233.04,233.0,108.83284491]
[1759794116892,3.8605,233.04,233.0,3.59284491]
[1759794117196,61.59920896,233.07,232.99,3.59284491]
[1759794117394,7.82,233.03,232.95,3.59284491]
[1759794117594,7.82,232.97,232.92,3.59284491]
[1759794117800,1.55370896,232.97,232.93,7.91]
[1759794118098,1.55370896,233.0,232.94,7.91]
[1759794118499,3.8613,232.99,232.93,7.91]
[1759794118694,1.55370896,233.0,232.93,7.91]
[1759794119199,3.8615,232.98,232.93,7.91]
[1759794119404,3.8615,232.98,232.92,89.55]
[1759794119604,1.55370896,233.0,232.92,113.13]
[1759794120203,1.55370896,232.97,232.92,7.91]
[1759794120501,9.37370896,232.97,232.9,52.31284491]
[1759794120901,9.37370896,232.97,232.91,7.91]
[1759794123102,13.23540896,232.97,232.91,7.91]
[1759794123302,11.6817,232.97,232.91,7.91]
[1759794125005,3.8613,232.99,232.91,7.91]
[1759794126707,3.8609,233.02,232.93,1.55370896]
[1759794127003,3.8609,233.02,232.97,7.91]
[1759794127207,7.82,233.06,232.97,7.91]
[1759794127605,3.8605,233.04,232.97,9.46370896]
[1759794131006,3.8601,233.06,232.97,9.46370896]
[1759794132814,48.56,233.09,232.97,9.46370896]
[1759794133612,40.74,233.09,232.97,114.68370896]
[1759794133813,7.82,233.08,232.97,114.68370896]
[1759794134409,3.8606,233.04,232.97,114.68370896]
[1759794135116,3.8606,233.04,232.89,67.2595066]
[1759794135117,7.82,233.03,232.95,11.50284491]
[1759794135316,7.82,233.0,232.92,3.59284491]
[1759794135616,7.82,233.0,232.92,11.50284491]
[1759794136013,3.8615,232.98,232.92,11.50284491]
[1759794136413,3.8615,232.98,232.92,7.91]
[1759794136617,3.8615,232.98,232.92,11.50284491]
[1759794139420,11.6811,233.0,232.94,7.32]
[1759794139816,3.8611,233.0,232.94,7.32]
[1759794140715,3.8611,233.0,232.94,10.91284491]
[1759794141116,3.8607,233.03,232.95,7.32]
[1759794141315,1.55370896,233.07,232.98,7.32]
[1759794141820,3.8602,233.05,232.98,48.9]
[1759794142021,1.55370896,233.07,232.98,48.9]
[1759794143031,7.31,233.08,232.98,48.9]
[1759794144625,3.8605,233.04,232.98,48.9]
[1759794146629,3.8605,233.04,232.98,52.49284491]
[1759794146829,3.8605,233.04,232.99,3.59284491]
[1759794147020,3.8605,233.04,233.0,7.32]
[1759794147329,3.8605,233.04,232.99,3.59284491]
[1759794147530,3.8605,233.04,233.0,7.32]
[1759794148128,3.8605,233.04,232.99,3.59284491]
[1759794148326,3.8605,233.04,233.0,7.32]
[1759794148631,62.46001454,233.13,233.0,7.32]
[1759794148828,7.31,233.12,233.02,7.32]
[1759794149227,7.31,233.12,233.02,3.59284491]
[1759794149428,7.31,233.12,233.03,7.32]
[1759794151026,3.8599,233.08,233.03,7.32]
[1759794151233,3.8599,233.08,233.03,3.59284491]
[1759794151736,3.8599,233.08,233.04,7.32]
[1759794152937,3.8599,233.08,233.03,3.59284491]
[1759794153140,7.31,233.1,233.04,7.32]
[1759794153332,9.74051454,233.17,233.04,7.32]
[1759794153525,7.31,233.17,233.06,7.32]
[1759794153725,7.31,233.17,233.08,7.32]
[1759794154328,7.31,233.17,233.09,3.59284491]
[1759794154528,7.31,233.17,233.1,7.32]
[1759794154732,3.8584,233.16,233.1,7.32]
[1759794155036,7.31,233.17,233.1,7.32]
[1759794155737,3.8584,233.16,233.1,7.32]
[1759794156834,328.91855154,233.24,233.1,7.32]
[1759794156835,3.8581,233.19,233.1,7.32]
[1759794157239,3.8581,233.19,233.1,10.91284491]
[1759794157739,3.8582,233.18,233.1,10.91284491]
[1759794158736,7.51,233.2,233.11,7.29]
[1759794160533,7.51,233.2,233.11,11.1491]
[1759794160736,7.51,233.2,233.12,7.29]
[1759794161943,3.8581,233.19,233.12,7.29]
[1759794164740,7.51,233.2,233.12,7.29]
[1759794167547,7.51,233.2,233.12,3.8589]
[1759794167848,3.8573,233.23,233.13,7.29]
[1759794168238,7.79,233.23,233.13,7.29]
[1759794169342,7.79,233.23,233.11,3.58522043]
[1759794169548,7.79,233.17,233.07,7.96]
[1759794170545,11.6483,233.17,233.07,7.96]
[1759794170847,60.0065,233.22,233.04,7.96]
[1759794170848,7.79,233.14,233.04,7.96]
[1759794171046,10.22051454,233.18,233.05,7.96]
[1759794171348,3.8584,233.17,233.07,7.96]
[1759794171647,10.22051454,233.18,233.07,7.96]
[1759794171849,10.22051454,233.18,233.1,3.8594]
[1759794172043,10.22051454,233.18,233.11,7.96]
[1759794172349,7.79,233.18,233.11,7.96]
[1759794174446,11.6482,233.18,233.11,7.96]
[1759794175847,7.79,233.18,233.11,7.96]
[1759794176052,7.79,233.18,233.06,16.57267376]
[1759794176053,7.79,233.17,233.06,7.96]
[1759794176350,2.43051454,233.14,233.06,7.96]
[1759794176552,7.79,233.13,233.06,7.96]
[1759794177150,11.6491,233.13,233.06,7.96]
[1759794179948,7.79,233.13,233.02,11.54522043]
[1759794180142,7.79,233.13,233.02,7.96]
[1759794180348,7.79,233.13,233.04,7.96]
[1759794180554,2.43051454,233.16,233.04,7.96]
[1759794180954,2.43051454,233.16,233.06,3.8601]
[1759794180955,6.28891454,233.16,233.06,3.8601]
[1759794181152,3.8584,233.16,233.07,7.96]
[1759794181353,2.43051454,233.2,233.07,7.96]
[1759794181556,2.43051454,233.2,233.08,7.96]
[1759794181855,3.8581,233.19,233.09,3.8596]
[1759794182060,11.6481,233.19,233.09,3.8596]
[1759794182856,11.6481,233.19,233.1,7.96]
[1759794183652,3.8582,233.18,233.1,7.96]
[1759794184053,7.79,233.19,233.1,7.96]
[1759794184256,3.8584,233.17,233.1,7.96]
[1759794186560,7.79,233.16,233.1,7.96]
[1759794187461,3.8586,233.15,233.1,7.96]
[1759794187657,7.79,233.18,233.08,3.58568507]
[1759794187863,7.79,233.18,233.06,3.58568507]
[1759794188364,7.79,233.18,233.07,3.58568507]
[1759794188558,3.8591,233.13,233.07,3.58568507]
[1759794189460,11.6486,233.15,233.07,3.58568507]
[1759794189660,11.6486,233.15,233.08,7.96]
[1759794189857,11.6486,233.15,233.08,11.54568507]
[1759794190062,11.6486,233.15,233.08,7.96]
[1759794190363,3.8589,233.14,233.08,11.54568507]
[1759794191863,3.8589,233.14,233.09,3.58568507]
[1759794192164,11.6489,233.14,233.09,7.96]
[1759794192360,11.6489,233.14,233.09,11.54568507]
[1759794192561,11.6489,233.14,233.1,7.96]
[1759794193667,7.79,233.14,233.1,7.96]
[1759794193968,3.8584,233.17,233.11,7.96]
[1759794194663,11.6485,233.16,233.1,3.58568507]
[1759794194862,7.79,233.16,233.1,3.58568507]
[1759794195663,7.79,233.14,233.1,11.54568507]
[1759794197466,7.79,233.14,233.11,3.58568507]
[1759794198070,7.8,233.18,233.11,3.58568507]
[1759794199563,3.8585,233.16,233.11,3.58568507]
[1759794199965,7.81,233.2,233.11,3.58568507]
[1759794201076,7.81,233.17,233.11,3.58568507]
[1759794201767,3.8588,233.14,233.11,3.58568507]
[1759794201973,11.6688,233.14,233.11,3.58568507]
[1759794202370,11.6682,233.18,233.12,3.58568507]
[1759794202573,11.6682,233.18,233.14,7.29]
[1759794204776,11.6684,233.17,233.14,7.29]
[1759794204974,7.81,233.22,233.13,10.87568507]
[1759794205176,7.81,233.21,233.13,10.87568507]
[1759794205366,3.8583,233.17,233.13,3.58568507]
[1759794205572,3.8583,233.17,233.14,7.29]
[1759794206374,11.6679,233.19,233.14,7.29]
[1759794206671,3.8579,233.19,233.14,10.87568507]
[1759794206875,7.81,233.18,233.14,10.87568507]
[1759794207974,11.6682,233.18,233.14,10.87568507]
[1759794208775,3.8578,233.2,233.14,3.58568507]
[1759794208973,3.8578,233.2,233.15,3.58568507]
[1759794209270,3.8578,233.2,233.16,7.29]
[1759794209477,3.8578,233.2,233.15,3.58568507]
[1759794209971,3.8578,233.2,233.16,7.29]
[1759794210177,13.22097458,233.22,233.16,7.29]
[1759794210682,9.36357458,233.22,233.16,7.29]
[1759794211274,3.8581,233.19,233.16,7.29]
[1759794211578,3.8581,233.19,233.17,7.29]
[1759794212279,3.8575,233.22,233.16,3.58568507]
[1759794213277,11.6677,233.21,233.16,10.87568507]
[1759794213572,11.6677,233.21,233.17,7.29]
[1759794218683,11.5277,233.21,233.17,7.29]
[1759794221078,3.8577,233.21,233.17,7.29]
[1759794221283,7.67,233.2,233.17,7.29]
[1759794222781,7.67,233.2,233.17,10.87568507]
[1759794222976,7.67,233.2,233.18,7.94]
[1759794223783,3.8577,233.21,233.18,7.94]
[1759794224487,11.5277,233.21,233.18,7.94]
[1759794225986,7.67,233.2,233.18,7.94]
[1759794228488,11.5279,233.2,233.17,3.58568507]
[1759794228687,11.5279,233.2,233.17,11.42568507]
[1759794231889,7.28,233.19,233.17,11.42568507]
[1759794233090,3.8581,233.18,233.17,11.42568507]
[1759794233390,3.8581,233.18,233.15,3.58568507]
[1759794233391,7.28,233.17,233.15,3.58568507]
[1759794234486,7.28,233.17,233.15,11.42568507]
[1759794235083,7.28,233.17,233.15,7.84]
[1759794235283,7.28,233.17,233.15,11.42568507]
[1759794235988,3.8581,233.18,233.15,11.42568507]
[1759794236195,3.8581,233.18,233.16,7.84]
[1759794237295,3.8581,233.18,233.15,3.58568507]
[1759794237491,3.8581,233.18,233.16,7.84]
[1759794237693,3.8581,233.18,233.15,3.58568507]
[1759794237993,3.8581,233.18,233.16,7.84]
[1759794238193,3.8581,233.18,233.17,7.84]
[1759794239094,11.1378,233.2,233.17,7.84]
[1759794239698,11.1378,233.2,233.16,3.58568507]
[1759794240094,11.1378,233.2,233.17,7.84]
[1759794240896,11.1378,233.2,233.16,3.58568507]
[1759794241600,11.1378,233.2,233.17,7.84]
[1759794242399,7.28,233.19,233.17,7.84]
[1759794243698,19.48341531,233.23,233.17,7.84]
[1759794243699,3.8575,233.22,233.17,7.84]
[1759794244397,3.8575,233.22,233.17,3.58568507]
[1759794244593,3.8575,233.22,233.18,7.84]
[1759794244900,11.1375,233.22,233.18,11.42568507]
[1759794245101,11.1375,233.22,233.19,7.84]
[1759794245500,7.28,233.22,233.19,7.84]
[1759794245695,7.28,233.22,233.18,3.58568507]
[1759794245895,7.28,233.22,233.19,7.84]
[1759794246605,3.8576,233.22,233.18,3.58568507]
[1759794247103,11.1376,233.22,233.19,11.42568507]
[1759794247304,11.1376,233.22,233.19,7.84]
[1759794248108,11.1376,233.22,233.19,11.42568507]
[1759794248401,17.92984073,233.23,233.19,3.58568507]
[1759794248602,17.92984073,233.23,233.21,7.84]
[1759794249001,17.92984073,233.23,233.2,3.58568507]
[1759794249208,7.28,233.22,233.2,3.58568507]
[1759794249905,11.1375,233.22,233.2,3.58568507]
[1759794250410,11.1375,233.22,233.2,11.42568507]
[1759794251606,3.8578,233.2,233.19,3.58568507]
[1759794251806,11.1378,233.2,233.19,3.58568507]
[1759794252010,11.1378,233.2,233.18,3.58568507]
[1759794252011,7.28,233.19,233.18,3.58568507]
[1759794254315,7.28,233.19,233.18,3.61320858]
[1759794255905,11.1381,233.19,233.17,3.61320858]
[1759794257014,11.1381,233.19,233.18,3.61320858]
[1759794257512,11.1381,233.19,233.17,3.61320858]
[1759794257711,1.55357458,233.18,233.09,12.6461404]
[1759794257907,1.55357458,233.15,233.09,12.6461404]
[1759794258313,1.55357458,233.15,233.06,11.0309066]
[1759794258314,3.859,233.13,233.08,4.8061404]
[1759794258515,9.13357458,233.15,233.09,12.4361404]
[1759794258717,9.13357458,233.15,233.09,7.63]
[1759794259617,3.8589,233.14,233.08,4.8061404]
[1759794260111,7.58,233.13,233.08,4.8061404]
[1759794260422,7.58,233.13,233.09,7.63]
[1759794260908,7.58,233.13,233.08,4.8061404]
[1759794261808,3.8589,233.14,233.08,4.8061404]
[1759794262320,3.8589,233.14,233.07,4.8061404]
[1759794262513,3.8589,233.14,233.08,7.63]
[1759794263114,7.58,233.13,233.07,4.8061404]
[1759794263320,7.58,233.11,233.03,7.63]
[1759794263814,3.8599,233.08,233.03,7.63]
[1759794264013,7.58,233.11,233.03,7.63]
[1759794264222,7.58,233.11,233.03,12.4361404]
[1759794264416,7.58,233.11,233.03,7.63]
[1759794265218,3.8597,233.09,233.03,7.63]
[1759794265617,7.58,233.15,233.08,7.63]
[1759794266620,11.4387,233.15,233.08,7.63]
[1759794270615,7.58,233.15,233.09,7.63]
[1759794271618,7.58,233.13,233.09,7.63]
[1759794271819,3.8588,233.14,233.09,7.63]
[1759794272020,7.58,233.13,233.09,7.63]
[1759794272716,7.58,233.13,233.07,7.63]
[1759794272920,3.8588,233.14,233.07,7.63]
[1759794275128,11.4385,233.16,233.07,11.4898]